bitfinex-derivatives/quotes_SOLF0:USTF0_20260102
["timestamp","ask_amount","ask_price","bid_price","bid_amount"]
[1767393152485,7.10561129,132.86,132.82,0.0564831]
[1767393152685,0.04948741,132.84,132.82,0.0564831]
[1767393156895,0.04948741,132.84,132.8,0.33673038]
[1767393157990,0.04948741,132.84,132.81,0.05434813]
[1767393158593,0.3775987,132.84,132.78,0.33673038]
[1767393158794,0.32811129,132.84,132.78,0.33673038]
[1767393159292,7.10631129,132.84,132.78,7.11783038]
[1767393159477,0.0512264,132.82,132.8,0.04921693]
[1767393162890,0.0512264,132.82,132.78,0.33673038]
[1767393164095,0.0512264,132.82,132.79,0.05496955]
[1767393170399,7.10621129,132.84,132.79,0.39169993]
[1767393171395,0.05233833,132.83,132.79,0.39169993]
[1767393172392,0.05233833,132.83,132.8,0.33673038]
[1767393172597,89.0,132.88,132.8,0.33673038]
[1767393172598,89.0,132.88,132.81,0.33673038]
[1767393172797,89.0,132.88,132.83,0.33673038]
[1767393173000,89.0,132.88,132.83,7.11523038]
[1767393173200,156.216801,132.9,132.83,7.11523038]
[1767393173201,156.216801,132.9,132.84,0.33673038]
[1767393173611,0.05493619,132.88,132.86,0.05743669]
[1767393177308,0.32811129,132.91,132.86,0.05743669]
[1767393177501,0.32811129,132.91,132.86,0.39416707]
[1767393177704,88.98,132.92,132.86,2.22467245]
[1767393178406,88.98,132.92,132.86,9.00157245]
[1767393180500,0.05394592,132.9,132.86,9.00157245]
[1767393180811,0.05394592,132.9,132.86,2.22467245]
[1767393181496,0.05394592,132.9,132.86,0.39416707]
[1767393184800,0.05394592,132.9,132.86,0.05743669]
[1767393191220,0.05394592,132.9,132.86,0.38468174]
[1767393198717,0.05394592,132.9,132.86,0.05743669]
[1767393204627,7.1474935,132.9,132.86,0.05743669]
[1767393205122,0.31854758,132.89,132.86,0.05743669]
[1767393206834,2.14905296,132.89,132.84,6.778]
[1767393207829,2.14905296,132.89,132.85,0.05520793]
[1767393209736,8.92465296,132.89,132.85,0.05520793]
[1767393210043,0.05394592,132.9,132.81,0.31222213]
[1767393210044,0.33694857,132.86,132.81,0.31222213]
[1767393210243,1.83050538,132.85,132.81,0.31222213]
[1767393210938,0.05064766,132.84,132.82,0.05110473]
[1767393211730,2.16745395,132.83,132.77,0.31222213]
[1767393212633,0.05587911,132.81,132.79,0.0549165]
[1767393217245,0.33694857,132.79,132.72,7.09602213]
[1767393217551,8.61070538,132.8,132.72,7.09602213]
[1767393217552,1.83050538,132.8,132.72,0.31222213]
[1767393217847,2.16745395,132.8,132.72,0.31222213]
[1767393218235,0.05556813,132.77,132.75,0.05065469]
[1767393219548,0.05556813,132.77,132.72,0.31222213]
[1767393219549,1.83050538,132.76,132.72,0.31222213]
[1767393220639,0.3925167,132.77,132.73,0.04989871]
[1767393220948,2.22302208,132.77,132.73,0.04989871]
[1767393222839,1.83050538,132.75,132.7,0.31222213]
[1767393223045,2.16745395,132.75,132.7,0.31222213]
[1767393224144,0.05672472,132.74,132.71,0.04790977]
[1767393230448,0.39367329,132.74,132.71,0.04790977]
[1767393232865,0.05672472,132.74,132.71,0.04790977]
[1767393234450,0.05672472,132.74,132.71,0.3601319]
[1767393234853,0.05672472,132.74,132.71,0.04790977]
[1767393235659,0.05672472,132.74,132.71,6.83250977]
[1767393239050,0.05672472,132.74,132.72,0.31222213]
[1767393239258,0.33694857,132.78,132.72,0.31222213]
[1767393240267,0.05378897,132.76,132.74,0.0533368]
[1767393242861,0.38249374,132.76,132.7,0.31310438]
[1767393243572,0.38249374,132.76,132.68,0.31310438]
[1767393243765,0.04899081,132.73,132.68,0.31310438]
[1767393244765,0.04899081,132.73,132.69,0.05320441]
[1767393249371,0.37769558,132.73,132.69,0.05320441]
[1767393256375,7.16149558,132.73,132.69,0.05320441]
[1767393257367,0.32870477,132.72,132.69,0.05320441]
[1767393259070,6.83279081,132.73,132.69,0.05320441]
[1767393259276,0.04899081,132.73,132.69,0.05320441]
[1767393259862,0.37769558,132.73,132.69,0.05320441]
[1767393262673,7.16169558,132.73,132.69,0.05320441]
[1767393265579,0.32870477,132.72,132.69,0.05320441]
[1767393266770,0.32870477,132.72,132.66,7.10030438]
[1767393267473,0.32870477,132.71,132.64,0.31310438]
[1767393267782,0.05266147,132.69,132.64,0.31310438]
[1767393267980,0.37975928,132.69,132.65,0.05225567]
[1767393268179,0.37975928,132.69,132.62,0.30640484]
[1767393268180,0.3824054,132.68,132.62,0.30640484]
[1767393268869,7.1688054,132.68,132.62,0.30640484]
[1767393269184,7.1688054,132.68,132.64,0.05319477]
[1767393269776,0.3216441,132.67,132.64,0.05319477]
[1767393269981,0.3216441,132.66,132.6,7.1277509]
[1767393270880,0.05586144,132.64,132.62,0.05463889]
[1767393272480,0.05586144,132.64,132.6,6.7903]
[1767393273079,0.37750554,132.64,132.6,6.7903]
[1767393273585,0.37750554,132.64,132.61,0.05675606]
[1767393287092,0.37750554,132.64,132.59,6.7906]
[1767393287291,0.37750554,132.64,132.56,16.0]
[1767393287593,0.3216441,132.61,132.56,0.3374509]
[1767393288209,0.0524451,132.6,132.57,0.04246217]
[1767393288588,0.3740892,132.6,132.57,0.04246217]
[1767393291494,0.3740892,132.6,132.54,7.1308509]
[1767393292202,0.3216441,132.59,132.54,7.1308509]
[1767393293899,0.3216441,132.59,132.54,6.7934]
[1767393294398,0.3216441,132.59,132.53,6.7939]
[1767393294600,0.05690539,132.57,132.53,6.7939]
[1767393296305,0.05690539,132.57,132.52,7.1318509]
[1767393300703,0.36359293,132.57,132.52,0.3374509]
[1767393302908,0.36359293,132.57,132.52,7.1317509]
[1767393314614,0.05690539,132.57,132.52,6.7943]
[1767393314809,0.05690539,132.57,132.53,0.30753808]
[1767393322727,0.05690539,132.57,132.51,0.30753808]
[1767393322728,6.7926,132.56,132.51,0.30753808]
[1767393322931,6.7926,132.56,132.47,16.0]
[1767393322932,0.36159828,132.55,132.49,0.30753808]
[1767393323118,0.05005815,132.53,132.49,0.30753808]
[1767393323729,0.05005815,132.53,132.49,7.10343808]
[1767393325835,0.05005815,132.53,132.49,0.30753808]
[1767393326235,0.35674569,132.53,132.48,7.10403808]
[1767393326825,7.15074569,132.53,132.48,0.30753808]
[1767393327926,0.32532478,132.52,132.46,7.11965419]
[1767393328232,0.05394775,132.5,132.46,7.11965419]
[1767393331329,0.05394775,132.5,132.47,0.31783415]
[1767393334240,0.05394775,132.5,132.48,0.31783415]
[1767393334440,7.10762254,132.54,132.48,0.36832926]
[1767393334942,0.31382254,132.51,132.48,0.05049511]
[1767393335442,0.36943819,132.51,132.48,0.05049511]
[1767393335736,0.36943819,132.51,132.46,0.31783415]
[1767393335940,7.16453819,132.51,132.46,0.31783415]
[1767393337339,7.16453819,132.51,132.46,1e-08]
[1767393338739,7.10932254,132.5,132.44,8.63423163]
[1767393338933,0.0569457,132.48,132.44,6.7985]
[1767393339340,0.0569457,132.48,132.44,7.10759109]
[1767393341329,0.0569457,132.48,132.44,0.30909109]
[1767393343142,0.37076824,132.48,132.42,0.30909109]
[1767393344943,6.797,132.47,132.42,0.30909109]
[1767393346248,0.37076824,132.48,132.42,8.94422272]
[1767393346437,0.37076824,132.48,132.42,8.63513163]
[1767393346750,0.37076824,132.48,132.41,0.30909109]
[1767393347045,0.05001971,132.46,132.41,0.30909109]
[1767393347433,0.05001971,132.46,132.41,7.10919109]
[1767393350641,0.05001971,132.46,132.42,0.30909109]
[1767393351238,0.36384225,132.46,132.4,7.10959109]
[1767393351940,7.16184225,132.46,132.4,0.30909109]
[1767393354366,7.16184225,132.46,132.42,0.30909109]
[1767393354367,0.05001971,132.46,132.42,0.30909109]
[1767393354954,0.05001971,132.46,132.42,7.10859109]
[1767393355651,0.31382254,132.53,132.45,0.25907138]
[1767393356549,0.31382254,132.53,132.46,7.05647138]
[1767393356850,89.53382254,132.55,132.47,0.31254373]
[1767393357056,89.53382254,132.55,132.47,0.25907138]
[1767393357656,0.05682192,132.52,132.5,0.05379813]
[1767393358559,0.05682192,132.52,132.47,7.05607138]
[1767393359460,0.05682192,132.52,132.48,0.05130556]
[1767393371170,0.05682192,132.52,132.47,7.05597138]
[1767393373170,0.394385,132.52,132.45,0.20768392]
[1767393373373,0.38818569,132.5,132.45,0.20768392]
[1767393374764,7.18378569,132.5,132.45,0.20768392]
[1767393382180,7.18378569,132.5,132.47,0.20768392]
[1767393382181,0.05062261,132.5,132.47,0.20768392]
[1767393382375,0.05049236,132.5,132.47,0.20768392]
[1767393382577,0.33756308,132.54,132.47,0.20768392]
[1767393383274,0.33756308,132.54,132.48,0.15719156]
[1767393383476,0.33756308,132.56,132.48,0.15719156]
[1767393383678,0.04908402,132.53,132.51,0.04900482]
[1767393385577,0.33756308,132.56,132.51,0.04900482]
[1767393386576,0.05612189,132.55,132.51,0.04900482]
[1767393388377,0.05612189,132.55,132.51,7.00113236]
[1767393388581,0.05612189,132.55,132.52,0.15722754]
[1767393389688,0.31685606,132.58,132.52,0.15722754]
[1767393389882,0.31685606,132.58,132.52,6.95152754]
[1767393390779,0.05132069,132.56,132.54,0.05533146]
[1767393391787,89.2,132.59,132.54,0.05533146]
[1767393391973,89.2,132.59,132.54,0.21236486]
[1767393392180,6.7903,132.61,132.55,0.1570334]
[1767393392480,0.31533268,132.66,132.59,6.9477334]
[1767393392790,0.31533268,132.66,132.59,0.1570334]
[1767393393087,0.0539541,132.64,132.61,0.055912]
[1767393395094,0.0539541,132.64,132.61,0.2129454]
[1767393396593,7.10193268,132.68,132.61,7.0026454]
[1767393397695,0.05801277,132.66,132.61,7.0026454]
[1767393398607,0.05801277,132.66,132.61,0.2129454]
[1767393399198,7.16074545,132.66,132.61,0.055912]
[1767393401014,0.31533268,132.65,132.61,0.055912]
[1767393401214,7.10313268,132.65,132.61,0.055912]
[1767393403310,7.16094545,132.66,132.61,0.055912]
[1767393403906,6.7878,132.65,132.61,0.055912]
[1767393404114,7.10313268,132.65,132.61,0.055912]
[1767393408306,6.7884,132.64,132.61,0.055912]
[1767393408511,7.10373268,132.64,132.61,0.055912]
[1767393408717,0.31533268,132.64,132.61,0.055912]
[1767393412227,194.7401,132.69,132.61,0.055912]
[1767393412228,0.31533268,132.71,132.64,0.09902063]
[1767393412526,0.31533268,132.7,132.64,0.09902063]
[1767393412718,89.12,132.71,132.65,6.88672063]
[1767393413323,0.05306262,132.69,132.67,0.052687]
[1767393413823,7.09953268,132.72,132.67,0.052687]
[1767393414227,0.31533268,132.72,132.67,0.052687]
[1767393414728,0.05640349,132.71,132.67,0.052687]
[1767393415926,0.37173617,132.71,132.67,0.052687]
[1767393416828,7.15653617,132.71,132.67,0.052687]
[1767393417031,0.05640349,132.71,132.67,0.052687]
[1767393418231,0.05640349,132.71,132.67,1.88827404]
[1767393418733,0.05640349,132.71,132.67,1.98729467]
[1767393419120,0.05640349,132.71,132.68,0.09902063]
[1767393425732,0.3914501,132.71,132.67,0.052687]
[1767393426928,7.1762501,132.71,132.67,0.052687]
[1767393429032,0.33504661,132.69,132.64,0.098881]
[1767393429241,0.33504661,132.69,132.62,6.887681]
[1767393429742,7.12084661,132.69,132.62,6.887681]
[1767393430139,0.04836487,132.67,132.64,0.05191221]
[1767393446964,2.17063365,132.66,132.62,6.7892]
[1767393447958,2.17063365,132.66,132.63,0.04849952]
[1767393448161,0.30858007,132.65,132.6,0.098881]
[1767393448362,0.30858007,132.65,132.58,16.1995]
[1767393448563,1.83558704,132.64,132.58,16.1995]
[1767393448767,0.30858007,132.63,132.58,16.1995]
[1767393448969,0.30858007,132.63,132.58,0.1995]
[1767393449171,0.05363308,132.62,132.59,0.05781579]
[1767393450066,1.83558704,132.66,132.59,0.38153828]
[1767393450256,1.83558704,132.66,132.59,0.32372249]
[1767393450453,1.83558704,132.66,132.61,6.7897]
[1767393451063,0.05254996,132.65,132.62,0.04911972]
[1767393462277,0.05254996,132.65,132.62,6.83841972]
[1767393462577,89.4021562,132.68,132.63,0.32372249]
[1767393463569,0.05217491,132.67,132.63,0.32372249]
[1767393463872,0.05217491,132.67,132.63,7.11242249]
[1767393464085,0.3221562,132.7,132.63,0.32372249]
[1767393464969,0.05261336,132.68,132.65,0.05408963]
[1767393465683,105.514,132.75,132.65,0.05408963]
[1767393465684,2.15774324,132.74,132.67,0.32372249]
[1767393466677,0.05104446,132.72,132.69,0.05662846]
[1767393467881,89.4021562,132.76,132.69,0.38035095]
[1767393468583,89.4021562,132.76,132.69,7.16555095]
[1767393468880,0.05112922,132.74,132.69,7.16555095]
[1767393469082,0.05112922,132.74,132.7,6.7852]
[1767393471177,0.05112922,132.74,132.69,0.38035095]
[1767393472875,0.37328542,132.74,132.69,0.38035095]
[1767393475181,7.15648542,132.74,132.69,0.38035095]
[1767393475872,0.3221562,132.73,132.69,0.05662846]
[1767393478473,0.3221562,132.72,132.67,0.32372249]
[1767393479591,0.04772547,132.71,132.68,0.05518282]
[1767393480396,0.37873835,132.71,132.65,6.7878]
[1767393480595,0.33101288,132.71,132.65,6.7878]
[1767393481007,0.33101288,132.73,132.67,0.31505235]
[1767393481299,0.33101288,132.75,132.67,0.31505235]
[1767393481508,0.33101288,132.75,132.69,7.15398877]
[1767393481707,0.33101288,132.75,132.69,0.36828877]
[1767393481893,264.04883981,132.77,132.69,0.36828877]
[1767393482089,174.98883981,132.77,132.71,7.09975235]
[1767393482296,174.65782693,132.77,132.72,0.31505235]
[1767393482500,0.05057635,132.76,132.73,0.04800605]
[1767393489205,0.38158923,132.76,132.7,7.09985235]
[1767393490016,0.38158923,132.76,132.7,6.7848]
[1767393490215,0.38158923,132.76,132.72,0.05270462]
[1767393490505,89.42158923,132.76,132.72,0.05270462]
[1767393490907,0.33101288,132.75,132.7,6.7848]
[1767393491711,0.33101288,132.75,132.69,16.31505235]
[1767393491913,0.04853589,132.73,132.71,0.05696307]
[1767393494615,0.04853589,132.73,132.67,0.31505235]
[1767393495419,0.04853589,132.73,132.69,0.04909388]
[1767393496913,0.37954877,132.73,132.69,0.04909388]
[1767393497511,0.37954877,132.73,132.67,0.31505235]
[1767393497719,0.33101288,132.72,132.65,7.10235235]
[1767393498614,0.05532364,132.7,132.67,0.05757871]
[1767393511423,0.05532364,132.7,132.65,7.10275235]
[1767393511632,0.05532364,132.7,132.65,0.31505235]
[1767393512422,0.05532364,132.7,132.66,0.0531078]
[1767393512622,0.36903509,132.7,132.66,0.0531078]
[1767393528031,0.05532364,132.7,132.66,0.38473571]
[1767393539649,0.3072181,132.74,132.66,0.38473571]
[1767393539941,0.3072181,132.78,132.71,0.31550696]
[1767393540738,0.05009369,132.76,132.73,0.05608127]
[1767393542939,0.05009369,132.76,132.67,0.31550696]
[1767393542940,0.3072181,132.74,132.67,0.31550696]
[1767393544040,0.05416075,132.72,132.69,0.0559816]
[1767393558554,0.36137885,132.72,132.69,0.0559816]
[1767393559549,0.36137885,132.72,132.64,0.31550696]
[1767393559550,0.3072181,132.71,132.64,0.31550696]
[1767393560552,0.05018226,132.69,132.66,0.05654993]
[1767393561252,0.3072181,132.73,132.66,0.37205689]
[1767393561452,0.3072181,132.73,132.66,0.31550696]
[1767393561955,0.3072181,132.73,132.67,1.83348165]
[1767393562350,0.05098221,132.71,132.69,0.05596783]
[1767393567458,0.3072181,132.73,132.69,0.05596783]
[1767393568457,0.0509551,132.72,132.69,0.05596783]
[1767393588381,0.36395915,132.72,132.65,0.3339987]
[1767393588669,0.31300405,132.72,132.65,0.3339987]
[1767393589372,0.05800223,132.7,132.67,0.05008726]
[1767393589678,180.24659391,132.77,132.7,0.3339987]
[1767393589863,0.31300405,132.76,132.7,0.3339987]
[1767393590067,180.24659391,132.77,132.71,0.3339987]
[1767393590271,0.31300405,132.77,132.71,2.16748035]
[1767393590464,0.31300405,132.77,132.71,0.3339987]
[1767393590774,0.05757341,132.75,132.73,0.05351586]
[1767393596270,0.37057746,132.75,132.68,0.3339987]
[1767393596476,0.31300405,132.75,132.66,0.3339987]
[1767393597272,0.31300405,132.75,132.69,0.05429866]
[1767393597474,0.04970744,132.72,132.69,0.05429866]
[1767393600177,0.04970744,132.72,132.69,0.36506979]
[1767393600374,0.37171241,132.72,132.69,0.05429866]
[1767393600578,0.37171241,132.72,132.64,0.31077113]
[1767393600879,0.32200497,132.72,132.65,0.31077113]
[1767393601680,0.04945136,132.7,132.67,0.0540168]
[1767393602181,0.32200497,132.74,132.67,0.36478793]
[1767393602382,0.32200497,132.74,132.67,0.31077113]
[1767393603181,0.04959219,132.72,132.69,0.05693862]
[1767393603388,0.04959219,132.72,132.69,0.36770975]
[1767393606193,0.04959219,132.72,132.69,0.05693862]
[1767393606378,0.37159716,132.72,132.69,0.05693862]
[1767393609789,7.15589716,132.72,132.69,0.05693862]
[1767393612490,7.15589716,132.72,132.65,0.31077113]
[1767393612491,0.32200497,132.7,132.65,0.31077113]
[1767393613490,0.05075921,132.69,132.66,0.0557495]
[1767393614693,0.37276418,132.69,132.63,0.31077113]
[1767393615388,7.10900497,132.67,132.61,0.31077113]
[1767393615796,0.04954057,132.65,132.63,0.02964833]
[1767393624788,0.04954057,132.65,132.59,7.10117113]
[1767393625298,0.32200497,132.64,132.57,0.31077113]
[1767393625685,0.05657241,132.62,132.57,0.31077113]
[1767393626189,0.05657241,132.62,132.57,7.10217113]
[1767393629892,0.05657241,132.62,132.58,7.12120318]
[1767393630093,0.04851105,132.61,132.58,7.12120318]
[1767393635601,0.33508052,132.69,132.62,0.32990318]
[1767393636192,0.33508052,132.69,132.64,6.7882]
[1767393636594,0.0571269,132.68,132.65,0.04851105]
[1767393645305,0.39220742,132.68,132.65,0.04851105]
[1767393663616,6.7857,132.69,132.65,0.04851105]
[1767393663617,0.33069219,132.73,132.66,0.33841022]
[1767393663817,0.33069219,132.73,132.67,2.1729258]
[1767393664714,0.05444816,132.71,132.69,0.05716058]
[1767393665600,0.33069219,132.73,132.69,0.05716058]
[1767393666615,0.04820924,132.72,132.69,0.05716058]
[1767393684526,0.04820924,132.72,132.69,9.01558638]
[1767393685126,0.04820924,132.72,132.69,7.1810708]
[1767393685320,0.33069219,132.77,132.71,0.33841022]
[1767393686126,0.33069219,132.77,132.71,7.12301022]
[1767393686323,0.05516765,132.75,132.73,0.05527898]
[1767393689628,0.32296333,132.79,132.74,0.31389065]
[1767393690435,0.05647107,132.78,132.74,0.31389065]
[1767393690936,0.05647107,132.78,132.75,6.7825]
[1767393697345,0.05647107,132.78,132.75,7.09639065]
[1767393698941,0.32296333,132.87,132.79,0.31389065]
[1767393699148,0.32296333,132.87,132.8,0.31389065]
[1767393699844,0.05085968,132.85,132.82,0.05796942]
[1767393701233,0.37382301,132.85,132.82,0.05796942]
[1767393701434,0.37382301,132.85,132.78,0.31389065]
[1767393701745,0.32296333,132.85,132.78,0.31389065]
[1767393702549,0.05774298,132.83,132.8,0.05783313]
[1767393704052,0.05774298,132.83,132.8,6.83783313]
[1767393704348,0.32296333,132.85,132.8,7.15172378]
[1767393705235,0.05545192,132.84,132.8,7.15172378]
[1767393705649,0.37841525,132.84,132.8,0.05783313]
[1767393706050,1.83451558,132.83,132.8,0.05783313]
[1767393707448,0.32296333,132.8,132.74,0.31389065]
[1767393708553,0.04914661,132.78,132.76,0.04945621]
[1767393711453,2.15747891,132.77,132.69,0.31389065]
[1767393711654,0.32296333,132.76,132.69,0.31389065]
[1767393712453,0.05764107,132.74,132.71,0.05732868]
[1767393717255,0.32296333,132.78,132.71,0.37121933]
[1767393718159,0.05098721,132.76,132.71,0.37121933]
[1767393722758,0.05098721,132.76,132.72,0.30968881]
[1767393724857,0.05098721,132.76,132.72,7.09378881]
[1767393725766,0.05098721,132.76,132.73,0.30968881]
[1767393734866,7.1055675,132.81,132.74,0.30968881]
[1767393735062,0.3258675,132.85,132.76,0.30968881]
[1767393735966,0.04932116,132.82,132.79,0.0551029]
[1767393736774,0.04932116,132.82,132.79,6.8356029]
[1767393738574,0.04932116,132.82,132.79,7.14529171]
[1767393739169,7.1024675,132.87,132.8,7.08968881]
[1767393739467,89.0,132.89,132.81,0.30968881]
[1767393740059,89.0,132.89,132.79,2.86350444]
[1767393740060,0.05262267,132.86,132.84,0.04762894]
[1767393740661,0.3258675,132.9,132.84,0.35731775]
[1767393741472,0.3258675,132.9,132.84,7.13521775]
[1767393741673,0.04932218,132.88,132.84,7.13521775]
[1767393742781,0.04932218,132.88,132.85,0.30968881]
[1767393743081,175.39954927,132.91,132.86,0.30968881]
[1767393743884,0.3258675,132.92,132.86,0.30968881]
[1767393744178,0.05449202,132.9,132.88,0.0553691]
[1767393744384,17.66970015,132.94,132.88,0.36505791]
[1767393745385,0.05369423,132.92,132.88,0.36505791]
[1767393747185,0.05369423,132.92,132.89,0.30968881]
[1767393747990,17.34383265,132.94,132.9,0.3341161]
[1767393748992,0.05152305,132.93,132.91,0.05398719]
[1767393752389,16.66494799,132.94,132.91,0.36825718]
[1767393752588,16.29296504,132.94,132.91,0.36825718]
[1767393753394,16.34970686,132.94,132.91,0.36825718]
[1767393756099,0.05674182,132.94,132.91,7.14265718]
[1767393756305,1.21e-05,132.94,132.91,7.14265718]
[1767393761008,1.21e-05,132.94,132.92,6.7738]
[1767393763410,1.21e-05,132.94,132.92,95.6938]
[1767393765115,1.21e-05,132.94,132.93,6.7735]
[1767393766507,1.21e-05,132.94,132.92,95.694]
[1767393766812,1.21e-05,132.94,132.91,88.95398719]
[1767393767708,1.21e-05,132.94,132.91,0.05398719]
[1767393769414,0.32059964,132.94,132.85,2.86350444]
[1767393769618,0.32058754,132.94,132.85,88.9]
[1767393770419,0.05785253,132.91,132.88,0.04912003]
[1767393770618,0.05785253,132.91,132.88,0.05069703]
[1767393782519,0.05785253,132.91,132.88,6.82669703]
[1767393783224,0.05785253,132.91,132.89,6.7753]
[1767393784522,0.05785253,132.91,132.88,0.05069703]
[1767393784523,8.59939397,132.98,132.88,1.878691]
[1767393784729,0.32519077,132.97,132.89,88.92]
[1767393785627,0.04886941,132.94,132.92,0.05396181]
[1767393787923,88.92,133.0,132.92,0.05396181]
[1767393787924,1.82799397,133.0,132.92,0.05396181]
[1767393788232,0.32519077,133.02,132.92,0.05396181]
[1767393788233,0.32519077,133.01,132.93,88.92]
[1767393788725,0.32519077,133.01,132.96,0.05521255]
[1767393788928,7.09469077,133.01,132.96,0.05521255]
[1767393789924,0.32519077,133.01,132.96,0.05521255]
[1767393790332,1.82799397,133.04,132.98,6.7707]
[1767393790527,1.82799397,133.04,133.0,0.05436214]
[1767393790830,1.82799397,133.04,132.98,6.7707]
[1767393791032,1.82799397,133.04,132.96,6.7715]
[1767393791233,1.82799397,133.04,132.94,107.18259397]
[1767393791621,0.05134915,133.0,132.98,0.05354263]
[1767393794624,0.05134915,133.0,132.93,90.72799397]
[1767393794824,0.05134915,133.0,132.94,6.7726]
[1767393795734,0.05134915,133.0,132.96,0.05667283]
[1767393800025,6.82124915,133.0,132.96,0.05667283]
[1767393800732,0.05134915,133.0,132.96,0.05667283]
[1767393805843,0.05134915,133.0,132.96,6.82857283]
[1767393806435,0.05134915,133.0,132.96,0.05667283]
[1767393806736,0.05134915,133.0,132.97,6.7714]
[1767393807342,7.09359077,133.04,132.98,6.7709]
[1767393808236,0.04970842,133.02,133.0,0.05180356]
[1767393809141,7.08991767,133.06,133.0,0.05180356]
[1767393809337,174.37054302,133.07,133.0,0.05180356]
[1767393809740,174.6774122,133.07,133.0,0.05180356]
[1767393809937,8.59369397,133.09,133.0,0.05180356]
[1767393810236,0.30686918,133.1,133.03,6.82031772]
[1767393811341,8.90026315,133.09,133.03,0.05201772]
[1767393811535,8.90026315,133.09,133.05,0.05301996]
[1767393812341,0.30686918,133.09,133.05,0.05301996]
[1767393814642,6.7649,133.1,132.99,88.86]
[1767393814643,0.36443372,133.08,132.99,88.86]
[1767393814842,0.30686918,133.08,133.01,1.82799397]
[1767393815740,0.05260854,133.06,133.03,0.05583293]
[1767393818148,0.05260854,133.06,133.03,1.8838269]
[1767393818349,0.05260854,133.06,133.03,0.05583293]
[1767393818742,0.30686918,133.14,133.06,105.2613]
[1767393818946,0.30686918,133.14,133.09,1.82799397]
[1767393819245,0.30686918,133.17,133.09,1.82799397]
[1767393819650,0.30686918,133.17,133.12,0.05760208]
[1767393819844,6.7622,133.16,133.12,0.05760208]
[1767393820353,0.30686918,133.17,133.12,0.05760208]
[1767393821048,7.06846918,133.17,133.12,0.05760208]
[1767393821250,0.30686918,133.17,133.12,0.05760208]
[1767393822843,6.7619,133.16,133.12,0.05760208]
[1767393823257,7.06876918,133.16,133.12,0.05760208]
[1767393823551,7.06876918,133.16,133.07,0.02160175]
[1767393823552,0.30686918,133.16,133.07,0.02160175]
[1767393823852,0.30686918,133.16,133.07,1.84959572]
[1767393824151,0.30686918,133.16,133.07,0.02160175]
[1767393824551,0.05133033,133.13,133.1,0.05297679]
[1767393827846,0.35819951,133.13,133.1,0.05297679]
[1767393828051,0.35819951,133.13,133.06,8.61609572]
[1767393828253,7.12149951,133.13,133.06,8.61609572]
[1767393828948,0.30686918,133.12,133.08,0.05474788]
[1767393829146,7.07066918,133.12,133.08,0.05474788]
[1767393829461,0.30686918,133.11,133.08,0.05474788]
[1767393829756,7.07126918,133.11,133.04,8.67007251]
[1767393829945,0.30686918,133.1,133.04,1.90257251]
[1767393830152,0.30686918,133.1,133.04,0.07457854]
[1767393830744,0.05137157,133.08,133.06,0.05008429]
[1767393830955,0.05137157,133.08,133.03,6.7684]
[1767393831151,0.05137157,133.08,133.02,0.07457854]
[1767393831152,7.12414075,133.08,133.02,0.07457854]
[1767393831651,0.30686918,133.12,133.05,0.07457854]
[1767393831848,0.30686918,133.14,133.06,0.02320697]
[1767393832249,0.30686918,133.14,133.08,0.02320697]
[1767393832851,0.05005509,133.12,133.1,0.05377467]
[1767393835057,6.7623,133.15,133.1,0.05377467]
[1767393835267,0.30686918,133.16,133.1,0.07698164]
[1767393835660,0.30686918,133.18,133.11,6.78750697]
[1767393836160,0.049331,133.16,133.13,0.049925]
[1767393837766,0.30686918,133.18,133.13,0.049925]
[1767393838865,0.05012881,133.17,133.13,0.049925]
[1767393839765,0.33605838,133.23,133.14,0.03221323]
[1767393840065,0.33605838,133.23,133.15,105.1908]
[1767393840267,0.33605838,133.26,133.18,6.7606]
[1767393840965,0.03336837,133.23,133.21,0.05632041]
[1767393841658,0.33605838,133.21,133.12,88.78]
[1767393841861,0.33605838,133.2,133.1,2.84554941]
[1767393842059,7.09745838,133.17,133.09,6.7649]
[1767393842261,7.09745838,133.17,133.08,2.84554941]
[1767393842659,0.05100678,133.14,133.11,0.05278986]
[1767393842862,0.05100678,133.14,133.06,2.84554941]
[1767393843063,0.33605838,133.17,133.06,2.84554941]
[1767393843758,6.7625,133.15,133.07,0.0283256]
[1767393844065,0.05321335,133.13,133.1,0.05245535]
[1767393847466,0.33605838,133.19,133.1,0.09732982]
[1767393847662,0.33605838,133.19,133.1,0.04487447]
[1767393848665,0.0578148,133.16,133.13,0.05485126]
[1767393851176,0.33605838,133.22,133.14,6.7627]
[1767393851476,0.33605838,133.22,133.12,124.05834941]
[1767393852279,0.03145048,133.18,133.16,0.0562528]
[1767393853078,7.09485838,133.22,133.16,0.0562528]
[1767393854177,0.33605838,133.21,133.16,0.0562528]
[1767393855071,0.33605838,133.21,133.12,18.84554941]
[1767393855072,0.33605838,133.2,133.11,0.03953718]
[1767393855378,0.33605838,133.17,133.06,2.88508659]
[1767393856082,0.04774377,133.13,133.1,0.04926843]
[1767393856282,0.04774377,133.13,133.1,0.04933226]
[1767393856685,0.04774377,133.13,133.06,0.03953718]
[1767393856885,0.38380215,133.13,133.06,0.03953718]